bitfinex/quotes_BTCUSD_20240915
["timestamp","ask_amount","ask_price","bid_price","bid_amount"]
[1726438867641,0.22060067,59599.0,59598.0,1.4353577]
[1726438876191,0.22060067,59599.0,59598.0,1.4373577]
[1726438876401,0.22060067,59599.0,59598.0,1.60859791]
[1726438876627,0.22060067,59599.0,59598.0,1.4353577]
[1726438876864,0.22060067,59599.0,59598.0,0.012644]
[1726438877078,0.38838867,59599.0,59598.0,0.012644]
[1726438877299,0.70428867,59599.0,59598.0,0.012644]
[1726438877535,0.53650067,59599.0,59598.0,0.012644]
[1726438877752,0.53650067,59599.0,59598.0,0.007644]
[1726438878633,0.58652539,59599.0,59598.0,0.001644]
[1726438878879,0.22360067,59599.0,59598.0,0.62667714]
[1726438879127,0.22960067,59599.0,59598.0,0.96325814]
[1726438879368,0.22960067,59599.0,59598.0,0.841596]
[1726438879369,0.22360067,59599.0,59598.0,0.841596]
[1726438879602,0.22960067,59599.0,59598.0,0.841596]
[1726438879832,0.22060067,59599.0,59598.0,0.505015]
[1726438880264,0.24693801,59599.0,59598.0,0.505015]
[1726438880482,0.29696273,59599.0,59598.0,0.505015]
[1726438880696,0.29696273,59599.0,59598.0,0.506015]
[1726438880697,0.30296273,59599.0,59598.0,0.506015]
[1726438880918,0.30596273,59599.0,59598.0,0.842596]
[1726438881146,0.25593801,59599.0,59598.0,0.842596]
[1726438881379,0.25593801,59599.0,59598.0,0.506015]
[1726438881380,0.30296273,59599.0,59598.0,0.506015]
[1726438881845,0.30596273,59599.0,59598.0,0.506015]
[1726438882305,0.30596273,59599.0,59598.0,0.002644]
[1726438882306,0.25593801,59599.0,59598.0,0.002644]
[1726438882855,0.37499981,59599.0,59598.0,0.001644]
[1726438883361,0.57289981,59599.0,59598.0,0.001644]
[1726438883581,1.26530201,59599.0,59598.0,0.001644]
[1726438883831,1.60387801,59599.0,59598.0,0.001644]
[1726438884061,1.75395217,59599.0,59598.0,0.001644]
[1726438884272,1.60387801,59599.0,59598.0,0.001644]
[1726438884724,1.41868485,59599.0,59598.0,0.001644]
[1726438885204,1.60387801,59599.0,59598.0,0.001644]
[1726438885660,1.57754067,59599.0,59598.0,0.001644]
[1726438886799,1.24196467,59599.0,59598.0,0.001644]
[1726438888101,0.54370067,59599.0,59598.0,0.34067421]
[1726438888347,0.54370067,59599.0,59598.0,1.01183621]
[1726438888348,0.32681153,59599.0,59598.0,1.01183621]
[1726438888585,0.22660067,59599.0,59598.0,1.01183621]
[1726438888838,0.22660067,59599.0,59598.0,1.34741721]
[1726438889301,0.22660067,59599.0,59598.0,1.176177]
[1726438889514,0.22360067,59599.0,59598.0,1.176177]
[1726438889953,0.22460067,59599.0,59598.0,1.176177]
[1726438890240,0.22160067,59599.0,59598.0,1.176177]
[1726438890442,0.22260067,59599.0,59598.0,1.176177]
[1726438890665,0.22260067,59599.0,59598.0,1.34741721]
[1726438891125,0.22260067,59599.0,59598.0,1.176177]
[1726438891339,0.22260067,59599.0,59598.0,0.840596]
[1726438892010,0.22342267,59599.0,59598.0,0.840596]
[1726438894245,0.27352941,59599.0,59598.0,0.840596]
[1726438894483,0.22342267,59599.0,59598.0,0.840596]
[1726438894930,0.22342267,59599.0,59598.0,0.9650276]
[1726438895144,0.22342267,59599.0,59598.0,1.3236086]
[1726438895400,0.22342267,59599.0,59598.0,1.3536086]
[1726438895617,0.22342267,59599.0,59598.0,1.9020696]
[1726438896255,0.22142267,59599.0,59598.0,1.9020696]
[1726438896684,0.22242267,59599.0,59598.0,1.7248696]
[1726438897601,0.22242267,59599.0,59598.0,1.7318696]
[1726438898316,0.22142267,59599.0,59598.0,1.7318696]
[1726438898580,0.22242267,59599.0,59598.0,1.7398696]
[1726438898842,0.22242267,59599.0,59598.0,1.4022886]
[1726438899071,0.22242267,59599.0,59598.0,1.244177]
[1726438899777,0.22242267,59599.0,59598.0,1.191177]
[1726438899986,0.22242267,59599.0,59598.0,0.855596]
[1726438900205,0.22242267,59599.0,59598.0,0.520015]
[1726438900839,0.22242267,59599.0,59598.0,0.855596]
[1726438903077,0.22242267,59599.0,59598.0,0.520015]
[1726438903311,0.22242267,59599.0,59598.0,0.69125521]
[1726438903537,0.22242267,59599.0,59598.0,1.02683621]
[1726438903774,0.22242267,59599.0,59598.0,1.11351621]
[1726438903990,0.22242267,59599.0,59598.0,1.44909721]
[1726438905244,0.22242267,59599.0,59598.0,1.45109721]
[1726438905749,0.22242267,59599.0,59598.0,1.78667821]
[1726438906401,0.22242267,59599.0,59598.0,1.44909721]
[1726438906816,0.22242267,59599.0,59598.0,1.78467821]
[1726438907709,0.22242267,59599.0,59598.0,1.277857]
[1726438907922,0.22242267,59599.0,59598.0,1.244177]
[1726438908159,0.22242267,59599.0,59598.0,1.214177]
[1726438908397,0.22242267,59599.0,59598.0,0.855596]
[1726438909505,0.22242267,59599.0,59598.0,1.191177]
[1726438909738,0.22242267,59599.0,59598.0,1.36241721]
[1726438909963,0.22242267,59599.0,59598.0,1.02683621]
[1726438910188,0.22242267,59599.0,59598.0,0.855596]
[1726438910418,0.22242267,59599.0,59598.0,0.520015]
[1726438910671,0.27252941,59599.0,59598.0,0.016644]
[1726438910889,0.80712153,59599.0,59598.0,0.016644]
[1726438911104,0.73324895,59599.0,59598.0,0.016644]
[1726438911337,1.19408546,59599.0,59598.0,0.016644]
[1726438911773,0.73324895,59599.0,59598.0,0.009644]
[1726438912005,0.73324895,59599.0,59598.0,0.001644]
[1726438912221,0.8574992,59599.0,59598.0,0.001644]
[1726438912431,0.73524895,59599.0,59598.0,0.001644]
[1726438912695,0.8604992,59599.0,59598.0,0.001644]
[1726438912910,1.53166983,59599.0,59598.0,0.001644]
[1726438913120,1.26652495,59599.0,59598.0,0.001644]
[1726438913374,0.167796,59596.0,59595.0,34.6943274]
[1726438913607,0.706418,59596.0,59595.0,34.6943274]
[1726438914548,1.04201,59596.0,59595.0,34.4943274]
[1726438914746,1.17023763,59596.0,59595.0,34.4943274]
[1726438915198,1.17025698,59596.0,59595.0,34.4943274]
[1726438916357,0.709418,59596.0,59595.0,34.4943274]
[1726438916536,0.80959284,59596.0,59595.0,34.4943274]
[1726438917037,0.81259284,59596.0,59595.0,34.4943274]
[1726438917708,1.14801,59596.0,59595.0,33.9610274]
[1726438917925,1.14801,59596.0,59595.0,32.4981274]
[1726438917926,2.60017998,59596.0,59595.0,32.4981274]
[1726438918143,2.474933,59596.0,59595.0,32.4981274]
[1726438918842,2.471933,59596.0,59595.0,32.4981274]
[1726438919061,2.807525,59596.0,59595.0,32.4981274]
[1726438919274,2.819525,59596.0,59595.0,32.4991274]
[1726438919489,2.468933,59596.0,59595.0,32.4981274]
[1726438919714,2.475933,59596.0,59595.0,32.4991274]
[1726438920137,2.152694,59596.0,59595.0,32.4989274]
[1726438920353,2.152694,59596.0,59595.0,32.4994274]
[1726438920578,2.868602,59596.0,59595.0,32.4984274]
[1726438920798,2.90894565,59596.0,59595.0,32.4994274]
[1726438921121,2.89994565,59596.0,59595.0,32.4979274]
[1726438921220,2.57635365,59596.0,59595.0,32.4984274]
[1726438921652,2.57635365,59596.0,59595.0,32.4981274]
[1726438921858,2.57635365,59596.0,59595.0,32.4979274]
[1726438922067,2.89794565,59596.0,59595.0,32.4965274]
[1726438922288,2.95725034,59596.0,59595.0,32.4955274]
[1726438922507,2.93125034,59596.0,59595.0,32.4953274]
[1726438922728,2.94525034,59596.0,59595.0,32.4959274]
[1726438922953,2.95925034,59596.0,59595.0,32.4955274]
[1726438923199,1.90275034,59596.0,59595.0,32.4955274]
[1726438923430,1.85744565,59596.0,59595.0,32.4952274]
[1726438923903,1.85744565,59596.0,59595.0,32.4951274]
[1726438924155,0.76076165,59596.0,59595.0,32.4951274]
[1726438924623,1.22145776,59596.0,59595.0,32.4951274]
[1726438924859,0.88586576,59596.0,59595.0,32.4951274]
[1726438925096,0.87186576,59596.0,59595.0,32.4951274]
[1726438925323,0.74676165,59596.0,59595.0,32.4951274]
[1726438925566,0.76076165,59596.0,59595.0,32.4941274]
[1726438925796,0.720418,59596.0,59595.0,32.4941274]
[1726438926028,0.734418,59596.0,59595.0,32.4951274]
[1726438926256,0.720418,59596.0,59595.0,32.4951274]
[1726438926471,1.05301,59596.0,59595.0,32.4941274]
[1726438926695,1.06501,59596.0,59595.0,32.4951274]
[1726438927795,1.06501,59596.0,59595.0,33.5267224]
[1726438927796,0.30108276,59596.0,59595.0,33.5267224]
[1726438927802,0.22603,59596.0,59595.0,33.1911244]
[1726438928018,0.22603,59596.0,59595.0,32.8555264]
[1726438928658,0.21403,59596.0,59595.0,33.1901244]
[1726438928882,0.20303,59596.0,59595.0,33.1911244]
[1726438929096,0.21903,59596.0,59595.0,33.1911244]
[1726438929322,0.21903,59596.0,59595.0,33.5267224]
[1726438929536,0.20303,59596.0,59595.0,33.5257224]
[1726438930397,0.20403,59596.0,59595.0,33.5257224]
[1726438930623,0.20403,59596.0,59595.0,33.5297224]
[1726438932162,0.20403,59596.0,59595.0,33.8653204]
[1726438933275,0.20403,59596.0,59595.0,33.5297224]
[1726438935377,0.20403,59596.0,59595.0,33.3371224]
[1726438935612,0.20403,59596.0,59595.0,32.6659264]
[1726438936061,0.20403,59596.0,59595.0,32.4981274]
[1726438936954,0.20403,59596.0,59595.0,32.6659264]
[1726438937654,0.25402388,59596.0,59595.0,33.0015244]
[1726438938795,0.25484588,59596.0,59595.0,33.0015244]
[1726438940386,0.28118701,59596.0,59595.0,33.0015244]
[1726438941290,0.28118701,59596.0,59595.0,33.3371224]
[1726438941521,0.23119313,59596.0,59595.0,33.6727204]
[1726438942239,0.004852,59596.0,59595.0,34.0083184]
[1726438942444,0.004852,59596.0,59595.0,34.39015861]
[1726438943330,0.004852,59596.0,59595.0,34.42015861]
[1726438944685,0.004852,59596.0,59595.0,34.2189184]
[1726438944935,0.004852,59596.0,59595.0,33.6727204]
[1726438945174,0.004852,59596.0,59595.0,33.3371224]
[1726438945821,0.004852,59596.0,59595.0,32.6659264]
[1726438946458,0.004852,59596.0,59595.0,33.0015244]
[1726438946670,0.05486039,59596.0,59595.0,32.6659264]
[1726438947594,0.05486039,59596.0,59595.0,33.0015244]
[1726438947836,0.004852,59596.0,59595.0,33.0015244]
[1726438948563,0.004852,59596.0,59595.0,33.3371224]
[1726438949901,0.03119115,59596.0,59595.0,33.3371224]
[1726438952931,0.03119115,59596.0,59595.0,33.6727204]
[1726438954484,0.03119115,59596.0,59595.0,33.8694204]
[1726438954735,0.03119115,59596.0,59595.0,33.94797861]
[1726438954947,0.03119115,59596.0,59595.0,34.30657661]
[1726438955158,0.004852,59596.0,59595.0,34.33657661]
[1726438955367,0.004852,59596.0,59595.0,34.2580184]
[1726438956979,0.004852,59596.0,59595.0,33.6727204]
[1726438957433,0.004852,59596.0,59595.0,33.3371224]
[1726438957669,0.004852,59596.0,59595.0,32.6659264]
[1726438957875,0.05488157,59596.0,59595.0,32.6659264]
[1726438958527,0.08122106,59596.0,59595.0,33.0015244]
[1726438961558,0.08122106,59596.0,59595.0,33.00083941]
[1726438964251,0.03119149,59596.0,59595.0,33.00083941]
[1726438965295,0.10623585,59596.0,59595.0,33.00083941]
[1726438966171,0.10630946,59596.0,59595.0,33.00083941]
[1726438967039,0.10630946,59596.0,59595.0,33.33643741]
[1726438967465,0.03119149,59596.0,59595.0,33.33643741]
[1726438967923,0.03119149,59596.0,59595.0,33.00083941]
[1726438968339,0.03119149,59596.0,59595.0,33.33643741]
[1726438968770,0.13134878,59596.0,59595.0,33.33643741]
[1726438969806,0.03119149,59596.0,59595.0,33.33643741]
[1726438970260,0.03119149,59596.0,59595.0,33.00083941]
[1726438970467,0.1563881,59596.0,59595.0,33.00083941]
[1726438970671,0.1563881,59596.0,59595.0,33.33643741]
[1726438972535,0.03119149,59596.0,59595.0,33.33643741]
[1726438972757,0.13143529,59596.0,59595.0,33.33643741]
[1726438972971,0.03119149,59596.0,59595.0,33.33643741]
[1726438973439,0.13144286,59596.0,59595.0,33.33643741]
[1726438973899,0.03119149,59596.0,59595.0,33.33643741]
[1726438974134,0.13145021,59596.0,59595.0,33.00083941]
[1726438974366,0.03119149,59596.0,59595.0,33.00083941]
[1726438975016,0.03119149,59596.0,59595.0,33.33643741]
[1726438975473,0.03119149,59596.0,59595.0,33.00083941]
[1726438980282,0.03119149,59596.0,59595.0,32.66524141]
[1726438982510,0.87017149,59596.0,59595.0,32.49744241]
[1726438983004,0.843832,59596.0,59595.0,32.49744241]
[1726438983446,1.51600622,59596.0,59595.0,32.49744241]
[1726438983675,1.53480399,59596.0,59595.0,32.49744241]
[1726438983899,1.365624,59596.0,59595.0,32.49744241]
[1726438984310,1.365624,59596.0,59595.0,32.49344241]
[1726438984564,1.53475767,59596.0,59595.0,32.49344241]
[1726438985223,1.53375767,59596.0,59595.0,32.49344241]
[1726438985458,1.53875767,59596.0,59595.0,32.49344241]
[1726438985673,1.53375767,59596.0,59595.0,32.49344241]
[1726438985884,1.56509954,59596.0,59595.0,32.49344241]
[1726438986091,1.57909954,59596.0,59595.0,32.49344241]
[1726438986302,1.56009954,59596.0,59595.0,32.49344241]
[1726438986555,1.39096587,59596.0,59595.0,32.49344241]
[1726438986780,1.41796587,59596.0,59595.0,32.49444241]
[1726438987911,1.391624,59596.0,59595.0,32.49444241]
[1726438988160,2.532091,59596.0,59595.0,32.09464241]
[1726438988373,2.501905,59596.0,59595.0,32.09464241]
[1726438988612,2.67095427,59596.0,59595.0,32.09464241]
[1726438988867,2.501905,59596.0,59595.0,32.09464241]
[1726438989092,3.263089,59596.0,59595.0,31.09484241]
[1726438990014,3.249089,59596.0,59595.0,31.09484241]
[1726438990235,3.236089,59596.0,59595.0,31.09384241]
[1726438990428,3.264089,59596.0,59595.0,31.09484241]
[1726438990886,3.29043754,59596.0,59595.0,31.09484241]
[1726438991096,5.66392754,59596.0,59595.0,31.09484241]
[1726438991521,5.68692754,59596.0,59595.0,31.09484241]
[1726438991957,5.67292754,59596.0,59595.0,31.09484241]
[1726438992149,5.63856754,59596.0,59595.0,31.09484241]
[1726438992625,3.11944154,59596.0,59595.0,31.09484241]
[1726438993324,2.87593754,59596.0,59595.0,31.09484241]
[1726438993548,3.0357671,59596.0,59595.0,31.09484241]
[1726438993778,3.03576747,59596.0,59595.0,31.09484241]
[1726438994001,1.89318709,59596.0,59595.0,31.09484241]
[1726438994260,1.84544609,59596.0,59595.0,31.09484241]
[1726438994937,0.856832,59596.0,59595.0,31.09484241]
[1726438995156,0.870832,59596.0,59595.0,31.09484241]
[1726438995366,0.94579593,59596.0,59595.0,31.09484241]
[1726438995624,0.93179593,59596.0,59595.0,31.09484241]
[1726438995820,0.10681593,59596.0,59595.0,31.09484241]
[1726438996043,0.59620393,59596.0,59595.0,31.09484241]
[1726438996269,0.50724,59596.0,59595.0,31.09384241]
[1726438996489,0.51924,59596.0,59595.0,31.09384241]
[1726438996707,0.56922173,59596.0,59595.0,31.09384241]
[1726438996949,0.58322173,59596.0,59595.0,31.09384241]
[1726438997171,0.57122173,59596.0,59595.0,31.09384241]
[1726438997392,0.06783373,59596.0,59595.0,31.26164141]
[1726438997610,0.003852,59596.0,59595.0,31.26164141]
[1726438997843,0.014852,59596.0,59595.0,31.26164141]
[1726438998536,0.026852,59596.0,59595.0,31.26164141]
[1726438998756,0.014852,59596.0,59595.0,31.26164141]
[1726438999223,0.026852,59596.0,59595.0,31.26164141]
[1726439000328,0.026852,59596.0,59595.0,31.09384241]
[1726439000781,0.026852,59596.0,59595.0,31.26164141]
[1726439002130,0.026852,59596.0,59595.0,31.59723941]
[1726439006378,0.026852,59596.0,59595.0,31.77873941]
[1726439011911,0.026852,59596.0,59595.0,31.44314141]
[1726439014127,0.026852,59596.0,59595.0,31.77873941]
[1726439014576,0.026852,59596.0,59595.0,31.44314141]
[1726439016638,0.026852,59596.0,59595.0,31.77873941]
[1726439017623,0.026852,59596.0,59595.0,31.44314141]
[1726439028477,0.2696541,59596.0,59595.0,31.09384241]
[1726439028712,0.6052461,59596.0,59595.0,31.09384241]
[1726439028910,0.63024814,59596.0,59595.0,31.09384241]
[1726439029533,0.60524748,59596.0,59595.0,31.09384241]
[1726439029940,0.59324748,59596.0,59595.0,31.09384241]
[1726439030361,0.60724748,59596.0,59595.0,31.09384241]
[1726439030573,0.59324748,59596.0,59595.0,31.09384241]
[1726439030784,0.60524748,59596.0,59595.0,31.09384241]
[1726439030994,0.59424748,59596.0,59595.0,31.09384241]
[1726439031201,0.60624748,59596.0,59595.0,31.09384241]
[1726439031843,0.59424748,59596.0,59595.0,31.09384241]
[1726439032051,0.60524748,59596.0,59595.0,31.09384241]
[1726439034004,0.53024,59596.0,59595.0,31.09384241]
[1726439034646,0.60524477,59596.0,59595.0,31.09384241]
[1726439035493,0.53024,59596.0,59595.0,31.09384241]
[1726439040407,0.865832,59596.0,59595.0,31.09384241]
[1726439041783,0.89217482,59596.0,59595.0,31.09384241]
[1726439044614,0.55658282,59596.0,59595.0,31.09384241]
[1726439045029,0.89217482,59596.0,59595.0,31.09384241]
[1726439045169,0.865832,59596.0,59595.0,31.09384241]
[1726439047142,0.17728583,59596.0,59595.0,31.38969572]
[1726439047374,0.17728583,59596.0,59595.0,31.09384241]
[1726439047375,0.34508183,59596.0,59595.0,31.09384241]
[1726439047656,0.53024,59596.0,59595.0,31.09384241]
[1726439047886,0.34508183,59596.0,59595.0,31.09384241]
[1726439048101,0.33408183,59596.0,59595.0,31.09384241]
[1726439048315,0.34842386,59596.0,59595.0,31.09384241]
[1726439048541,0.36742386,59596.0,59595.0,31.09384241]
[1726439049976,0.04919403,59596.0,59595.0,31.09384241]
[1726439050679,0.21699003,59596.0,59595.0,31.09384241]
[1726439051810,0.04919403,59596.0,59595.0,31.09384241]
[1726439056397,0.88817403,59596.0,59595.0,31.09384241]
[1726439056624,1.47419986,59596.0,59595.0,31.09384241]
[1726439056855,1.297424,59596.0,59595.0,31.09384241]
[1726439057317,1.46658953,59596.0,59595.0,31.09384241]
[1726439057529,1.297424,59596.0,59595.0,31.09384241]
[1726439057786,1.45658968,59596.0,59595.0,31.09384241]
[1726439058020,1.4475896,59596.0,59595.0,31.09384241]
[1726439058259,1.4615896,59596.0,59595.0,31.09384241]
[1726439059708,1.4755896,59596.0,59595.0,31.09384241]
[1726439059930,1.48793276,59596.0,59595.0,31.09384241]
[1726439060171,1.47393276,59596.0,59595.0,31.09384241]
[1726439060392,1.50193276,59596.0,59595.0,31.09384241]
[1726439061335,1.33276716,59596.0,59595.0,31.09384241]
[1726439069673,1.33476716,59596.0,59595.0,31.09384241]
[1726439069907,1.50376145,59596.0,59595.0,31.09384241]
[1726439070153,1.306424,59596.0,59595.0,31.09384241]
[1726439073018,1.50174072,59596.0,59595.0,31.09384241]
[1726439073241,1.33276771,59596.0,59595.0,31.09384241]
[1726439074101,1.66835971,59596.0,59595.0,31.09384241]
[1726439074309,1.83733272,59596.0,59595.0,31.09384241]
[1726439075059,1.50174072,59596.0,59595.0,31.09384241]
[1726439075486,1.33276771,59596.0,59595.0,31.09384241]
[1726439077605,1.50174072,59596.0,59595.0,31.09384241]
[1726439077828,1.50169203,59596.0,59595.0,31.09384241]
[1726439078479,1.51207119,59596.0,59595.0,31.09384241]
[1726439079124,1.49807119,59596.0,59595.0,31.09384241]
[1726439079340,1.51207119,59596.0,59595.0,31.09384241]
[1726439079772,1.49807119,59596.0,59595.0,31.09384241]
[1726439080002,1.51207119,59596.0,59595.0,31.09384241]
[1726439080244,1.49807119,59596.0,59595.0,31.09384241]
[1726439080708,3.79770987,59596.0,59595.0,31.09384241]
[1726439080965,3.86136616,59596.0,59595.0,31.09384241]
[1726439081224,4.34660312,59596.0,59595.0,31.09384241]
[1726439081462,4.30127416,59596.0,59595.0,30.57895659]
[1726439081700,4.28727416,59596.0,59595.0,30.57895659]
[1726439081959,4.30127416,59596.0,59595.0,30.57895659]
[1726439082196,4.34779295,59596.0,59595.0,30.53724137]
[1726439082433,4.3585213,59596.0,59595.0,30.53724137]
[1726439082923,4.4097499,59596.0,59595.0,30.32990137]
[1726439083153,4.4237499,59596.0,59595.0,30.32990137]
[1726439083378,4.39937074,59596.0,59595.0,30.32990137]
[1726439083592,4.41337074,59596.0,59595.0,30.32990137]
[1726439083831,5.06214214,59596.0,59595.0,30.32990137]
[1726439084084,5.08849315,59596.0,59595.0,30.32990137]
[1726439084336,5.10218726,59596.0,59595.0,30.32990137]
[1726439085491,5.05768908,59596.0,59595.0,30.32990137]
[1726439085716,5.03133807,59596.0,59595.0,30.32990137]
[1726439088273,5.19972578,59596.0,59595.0,30.32990137]
[1726439088733,5.03133807,59596.0,59595.0,30.32990137]
[1726439088968,5.05768897,59596.0,59595.0,30.32990137]
[1726439089199,5.08404439,59596.0,59595.0,30.32990137]
[1726439090358,4.38404439,59596.0,59595.0,30.32990137]
[1726439090820,2.69543663,59596.0,59595.0,30.32990137]
[1726439091054,2.84505491,59596.0,59595.0,30.32990137]
[1726439091308,2.69743663,59596.0,59595.0,30.32990137]
[1726439092041,3.03302863,59596.0,59595.0,30.32990137]
[1726439092523,3.05602863,59596.0,59595.0,30.32990137]
[1726439092960,3.10076467,59596.0,59595.0,30.32990137]
[1726439093181,3.15076467,59596.0,59595.0,30.32990137]
[1726439093616,3.15076467,59596.0,59595.0,30.19566137]
[1726439095405,2.77101267,59596.0,59595.0,30.19566137]
[1726439095623,7.77627663,59596.0,59595.0,30.16210137]
[1726439095848,7.82101267,59596.0,59595.0,29.92718137]
[1726439096074,7.82101267,59596.0,59595.0,29.89362137]
[1726439096075,8.00304099,59596.0,59595.0,29.89362137]
[1726439096309,6.7367188,59596.0,59595.0,29.89362137]
[1726439097187,6.6353278,59596.0,59595.0,29.89362137]
[1726439098088,6.2744838,59596.0,59595.0,29.89362137]
[1726439098752,6.27458475,59596.0,59595.0,29.89362137]
[1726439099439,6.30179501,59596.0,59595.0,29.89362137]
[1726439101523,6.30613724,59596.0,59595.0,29.89362137]
[1726439101952,6.30164847,59596.0,59595.0,29.89362137]
[1726439102388,6.30614166,59596.0,59595.0,29.89362137]
[1726439102616,6.30164847,59596.0,59595.0,29.89362137]
[1726439104830,6.30164847,59596.0,59595.0,29.37873555]
[1726439105039,6.25691243,59596.0,59595.0,29.21093555]
[1726439105269,6.23056153,59596.0,59595.0,29.21093555]
[1726439105528,6.44406235,59596.0,59595.0,29.21093555]
[1726439105750,6.28002514,59596.0,59595.0,29.17737555]
[1726439105984,6.28002514,59596.0,59595.0,29.04313555]
[1726439106211,6.27553195,59596.0,59595.0,29.04313555]
[1726439106907,6.44855146,59596.0,59595.0,28.90889555]
[1726439107126,6.44405827,59596.0,59595.0,28.87533555]
[1726439107379,6.44406314,59596.0,59595.0,28.87533555]
[1726439107599,6.44855414,59596.0,59595.0,28.87533555]
[1726439108072,6.44406095,59596.0,59595.0,28.87533555]
[1726439108507,6.44855414,59596.0,59595.0,28.87533555]
[1726439108744,6.47041196,59596.0,59595.0,28.87533555]
[1726439109185,6.30637615,59596.0,59595.0,28.87533555]
[1726439109434,6.30188296,59596.0,59595.0,28.87533555]
[1726439109968,6.30637615,59596.0,59595.0,28.87533555]
[1726439110211,7.1749271,59596.0,59595.0,28.19264973]
[1726439110420,7.00188296,59596.0,59595.0,28.19264973]
[1726439110877,7.00188296,59596.0,59595.0,28.15908973]
[1726439111133,7.00637615,59596.0,59595.0,28.09196973]
[1726439111341,7.00637615,59596.0,59595.0,28.05840973]
[1726439111587,7.00637615,59596.0,59595.0,28.01367869]
[1726439111796,7.00637615,59596.0,59595.0,27.98011869]
[1726439112734,7.00637615,59596.0,59595.0,27.91299869]
[1726439113175,7.00637615,59596.0,59595.0,27.81231869]
[1726439113405,7.00637615,59596.0,59595.0,27.74519869]
[1726439113651,6.51534815,59596.0,59595.0,27.74519869]
[1726439113868,6.39197615,59596.0,59595.0,27.71163869]
[1726439114083,5.69197615,59596.0,59595.0,27.57739869]
[1726439114767,5.69197615,59596.0,59595.0,27.51027869]
[1726439114992,2.81653115,59596.0,59595.0,27.44315869]
[1726439115223,2.81653115,59596.0,59595.0,27.40959869]
[1726439115224,2.77156073,59596.0,59595.0,27.40959869]
[1726439115470,2.75358795,59596.0,59595.0,27.40959869]
[1726439115696,6.75368396,59596.0,59595.0,27.34247869]
[1726439115914,6.59678396,59596.0,59595.0,27.34247869]
[1726439116548,6.27756596,59596.0,59595.0,27.34247869]
[1726439116756,6.45466596,59596.0,59595.0,27.34247869]
[1726439116970,7.15466596,59596.0,59595.0,27.34247869]
[1726439117397,7.08067696,59596.0,59595.0,27.34247869]
[1726439117633,6.08831996,59596.0,59595.0,27.34247869]
[1726439118796,6.11467159,59596.0,59595.0,27.34247869]
[1726439119012,6.1147644,59596.0,59595.0,27.34247869]
[1726439119714,5.2376644,59596.0,59595.0,27.34247869]
[1726439121750,5.21972299,59596.0,59595.0,27.34247869]
[1726439121974,5.23755178,59596.0,59595.0,27.34247869]
[1726439123910,5.48354624,59596.0,59595.0,27.34247869]
[1726439124181,5.23755178,59596.0,59595.0,27.34247869]
[1726439125095,5.93755178,59596.0,59595.0,27.34247869]
[1726439125327,5.23755178,59596.0,59595.0,27.34247869]
[1726439125550,5.21120015,59596.0,59595.0,27.34247869]
[1726439125770,6.64036715,59596.0,59595.0,27.24778906]
[1726439128162,5.70324615,59596.0,59595.0,27.24778906]
[1726439128408,6.40324615,59596.0,59595.0,27.24778906]
[1726439128912,6.42959797,59596.0,59595.0,27.24778906]
[1726439129581,5.72959797,59596.0,59595.0,27.24778906]
[1726439131765,5.35281797,59596.0,59595.0,27.24778906]
[1726439135348,5.35281797,59596.0,59595.0,27.18066906]
[1726439135569,5.32646615,59596.0,59595.0,27.07998906]
[1726439137458,5.19841184,59596.0,59595.0,27.07998906]
[1726439137697,5.32646615,59596.0,59595.0,27.07998906]
[1726439138866,5.35281711,59596.0,59595.0,27.07998906]
[1726439147705,2.81638711,59596.0,59595.0,27.07998906]
[1726439147925,2.77141669,59596.0,59595.0,27.07998906]
[1726439148137,2.7535879,59596.0,59595.0,27.07998906]
[1726439148358,7.15923039,59596.0,59595.0,27.07998906]
[1726439148577,6.66927639,59596.0,59595.0,27.07998906]
[1726439150620,6.05563008,59596.0,59595.0,27.07998906]
[1726439150855,2.83845006,59596.0,59595.0,27.26108906]
[1726439151070,2.76712868,59596.0,59595.0,27.26108906]
[1726439151285,2.60581273,59596.0,59595.0,27.26108906]
[1726439151505,2.65078315,59596.0,59595.0,27.26108906]
[1726439151729,2.65278315,59596.0,59595.0,27.26108906]
[1726439151945,2.75078315,59596.0,59595.0,27.26108906]
[1726439152990,2.6260786,59596.0,59595.0,27.26108906]
[1726439153276,2.63467849,59596.0,59595.0,27.26108906]
[1726439155535,2.60832873,59596.0,59595.0,27.26108906]
[1726439158772,2.63467802,59596.0,59595.0,27.26108906]
[1726439159505,2.63267802,59596.0,59595.0,27.26108906]
[1726439159716,2.62547402,59596.0,59595.0,27.58528906]
[1726439160566,2.62547402,59596.0,59595.0,27.40418906]
[1726439161202,2.96106602,59596.0,59595.0,27.40418906]
[1726439161411,2.67044444,59596.0,59595.0,27.40418906]
[1726439161620,2.62547402,59596.0,59595.0,27.40418906]
[1726439161853,2.96106602,59596.0,59595.0,27.40418906]
[1726439162083,3.00603644,59596.0,59595.0,27.40418906]
[1726439162308,6.36234749,59596.0,59595.0,27.40418906]
[1726439162531,5.19469149,59596.0,59595.0,27.40418906]
[1726439162752,5.03127763,59596.0,59595.0,27.40418906]
[1726439163415,5.36686963,59596.0,59595.0,27.40418906]
[1726439163628,5.03127763,59596.0,59595.0,27.40418906]
[1726439164046,5.36686963,59596.0,59595.0,27.40418906]
[1726439164490,5.03127763,59596.0,59595.0,27.40418906]
[1726439164910,5.01775649,59596.0,59595.0,27.40418906]
[1726439165118,5.03127763,59596.0,59595.0,27.40418906]
[1726439165540,5.00492834,59596.0,59595.0,27.40418906]
[1726439165747,5.34052034,59596.0,59595.0,27.40418906]
[1726439165966,5.00492834,59596.0,59595.0,27.40418906]
[1726439166259,4.9914072,59596.0,59595.0,27.40418906]
[1726439167160,3.58124184,59596.0,59595.0,27.40418906]
[1726439167375,3.70729615,59596.0,59595.0,27.40418906]
[1726439167560,3.70929615,59596.0,59595.0,27.40418906]
[1726439168888,3.736468,59596.0,59595.0,27.40418906]
[1726439173362,4.797233,59596.0,59595.0,27.40418906]
[1726439173997,4.784887,59596.0,59595.0,27.40418906]
[1726439174494,4.372916,59596.0,59595.0,27.40418906]
[1726439174740,3.977727,59596.0,59595.0,27.40418906]
[1726439178018,3.311317,59596.0,59595.0,27.40418906]
[1726439178204,2.21853984,59596.0,59595.0,27.59148906]
[1726439178505,2.07417684,59596.0,59595.0,27.59148906]
[1726439178718,2.02920642,59596.0,59595.0,27.59148906]
[1726439179773,1.96555553,59596.0,59595.0,27.59148906]
[1726439179989,0.86194711,59596.0,59595.0,27.59148906]
[1726439180235,1.28535,59596.0,59595.0,27.59148906]
[1726439180935,1.27135,59596.0,59595.0,27.59148906]
[1726439181179,1.37135,59596.0,59595.0,27.59148906]
[1726439181403,1.35735,59596.0,59595.0,27.59148906]
[1726439181847,1.39769761,59596.0,59595.0,27.59148906]
[1726439182302,1.38369761,59596.0,59595.0,27.59148906]
[1726439182698,1.41169761,59596.0,59595.0,27.59148906]
[1726439184118,1.29753761,59596.0,59595.0,27.59148906]
[1726439187320,0.96194561,59596.0,59595.0,27.59148906]
[1726439188820,1.11218197,59596.0,59595.0,27.59148906]